bitfinex/quotes_ETHUSD_20250802
["timestamp","ask_amount","ask_price","bid_price","bid_amount"]
[1754134021296,30.0,3509.2,3508.9,3.0]
[1754134021455,30.0,3509.0,3508.9,3.0]
[1754134021796,4.441,3509.0,3508.9,3.85676]
[1754134022003,35.3732,3509.0,3508.9,3.85676]
[1754134022597,34.9032,3509.0,3508.9,3.85676]
[1754134023082,0.11661441,3510.0,3508.9,0.85676]
[1754134023083,4.44,3509.3,3508.9,0.85676]
[1754134023286,4.442,3509.4,3509.2,8.45715195]
[1754134023992,30.0,3509.9,3509.3,3.0]
[1754134024182,4.443,3509.8,3509.3,3.0]
[1754134024480,0.4622,3509.7,3509.3,3.0]
[1754134024686,4.443,3509.8,3509.3,3.0]
[1754134024860,0.4622,3509.6,3509.3,3.0]
[1754134025059,0.47,3509.6,3509.3,3.0]
[1754134025288,0.47,3509.6,3509.4,0.856664]
[1754134025491,0.9322,3509.6,3509.4,0.856664]
[1754134025689,0.4622,3509.5,3509.4,0.856664]
[1754134026189,4.9052,3509.8,3509.4,0.856664]
[1754134026493,4.44,3509.7,3509.4,0.856664]
[1754134026669,4.441,3509.8,3509.7,8.45715195]
[1754134026865,34.441,3509.8,3509.7,8.45715195]
[1754134027070,34.9032,3509.8,3509.7,8.45715195]
[1754134027792,35.3732,3509.8,3509.7,8.45715195]
[1754134029269,30.0,3509.7,3509.4,0.856664]
[1754134029597,4.442,3509.6,3509.4,0.856664]
[1754134029802,5.3742,3509.6,3509.4,0.856664]
[1754134030100,0.4622,3509.5,3509.4,0.856664]
[1754134031115,0.9322,3509.5,3509.4,0.856664]
[1754134031813,4.438,3509.8,3509.4,0.999064]
[1754134031993,0.4622,3509.5,3509.4,0.856664]
[1754134032316,4.9082,3509.5,3509.4,0.856664]
[1754134032617,0.9322,3509.5,3509.4,0.856664]
[1754134033675,30.9322,3509.5,3509.4,0.856664]
[1754134033875,30.0,3509.4,3508.3,8.45715195]
[1754134034094,30.0,3509.2,3508.4,3.856868]
[1754134034391,30.0,3509.0,3508.4,3.856868]
[1754134034707,30.0,3508.8,3508.4,0.856868]
[1754134034933,0.11661441,3510.0,3508.4,0.856868]
[1754134034934,30.0,3508.6,3508.4,0.856868]
[1754134035129,5.3812,3508.5,3508.4,0.856868]
[1754134035325,0.4622,3508.5,3508.4,0.856868]
[1754134035632,4.449,3508.8,3508.4,4.78827]
[1754134035835,30.0,3509.2,3508.7,8.45715195]
[1754134036031,30.0,3509.3,3509.1,8.45715195]
[1754134036328,4.451,3509.3,3509.1,8.45715195]
[1754134036480,0.4622,3509.6,3509.1,8.45715195]
[1754134036670,4.45,3509.5,3509.1,8.45715195]
[1754134037895,4.9122,3509.5,3509.1,8.45715195]
[1754134039125,4.45,3509.5,3509.1,8.45715195]
[1754134039326,0.9322,3509.4,3509.1,8.45715195]
[1754134039895,0.4622,3509.3,3509.1,8.45715195]
[1754134040649,4.446,3509.5,3509.1,8.45715195]
[1754134040847,4.445,3509.6,3509.1,8.45715195]
[1754134041149,0.11661441,3510.0,3509.2,3.0]
[1754134041350,4.445,3509.9,3509.6,8.45715195]
[1754134041498,0.4622,3509.8,3509.6,8.45715195]
[1754134041701,0.11661441,3510.0,3509.6,8.45715195]
[1754134041932,0.11661441,3510.0,3509.7,0.856522]
[1754134042134,4.445,3509.9,3509.7,0.856522]
[1754134042443,0.60361441,3510.0,3509.7,0.856522]
[1754134042614,0.11661441,3510.0,3509.8,0.02849165]
[1754134042807,0.11661441,3510.0,3509.9,0.1424]
[1754134043609,0.4377,3510.5,3509.9,0.1424]
[1754134043610,4.445,3510.5,3510.1,8.45715195]
[1754134043809,0.487,3510.5,3510.1,8.45715195]
[1754134044082,30.0,3510.9,3510.2,3.0]
[1754134044356,4.8827,3511.3,3510.7,3.0]
[1754134044634,0.487,3511.0,3510.7,3.0]
[1754134046899,4.445,3511.3,3510.7,3.0]
[1754134046900,30.0,3511.2,3510.7,3.0]
[1754134047120,30.9247,3511.2,3510.7,3.0]
[1754134047322,34.443,3511.3,3511.1,8.45715195]
[1754134047520,4.443,3511.5,3511.1,8.45715195]
[1754134047750,30.0,3511.2,3511.1,8.45715195]
[1754134048252,0.4377,3511.8,3511.1,8.45715195]
[1754134048547,30.0,3511.5,3511.1,8.45715195]
[1754134049324,4.8807,3511.7,3511.1,8.45715195]
[1754134049325,4.443,3511.7,3511.2,0.1424]
[1754134049536,30.0,3511.6,3511.2,0.1424]
[1754134049947,4.93,3511.7,3511.2,0.1424]
[1754134050311,0.487,3511.7,3511.6,8.45715195]
[1754134050710,0.9247,3511.7,3511.2,0.1424]
[1754134050910,4.443,3511.8,3510.6,8.45715195]
[1754134050911,30.0,3511.5,3510.6,8.45715195]
[1754134051112,0.4377,3512.3,3511.1,8.45715195]
[1754134051313,30.0,3512.1,3511.8,8.45715195]
[1754134051522,0.487,3512.0,3511.8,8.45715195]
[1754134051723,0.487,3511.9,3511.8,8.45715195]
[1754134052147,0.9247,3511.9,3511.4,4.5984]
[1754134052357,30.0,3512.0,3511.5,3.0]
[1754134052514,30.0,3511.9,3511.5,3.1424]
[1754134053159,30.0,3511.9,3511.6,0.855985]
[1754134053452,6.851,3512.8,3511.6,0.855985]
[1754134053453,4.456,3512.1,3511.6,0.855985]
[1754134053618,4.456,3512.2,3511.9,8.45715195]
[1754134053823,4.456,3512.3,3511.9,8.45715195]
[1754134054147,0.487,3512.2,3511.9,8.45715195]
[1754134054348,0.9247,3512.2,3511.9,8.45715195]
[1754134054550,0.4377,3512.1,3511.9,8.45715195]
[1754134054859,30.0,3512.3,3512.0,0.855992]
[1754134055005,4.454,3512.2,3512.0,0.855992]
[1754134055209,0.4377,3512.8,3512.0,5.310992]
[1754134055420,30.0,3512.6,3512.0,5.310992]
[1754134055711,30.0,3512.4,3512.0,5.310992]
[1754134055910,0.9247,3512.3,3512.0,5.310992]
[1754134056149,0.4377,3512.3,3512.0,5.310992]
[1754134056447,0.9247,3512.2,3512.0,3.855992]
[1754134056604,0.9247,3512.1,3512.0,0.855992]
[1754134058143,30.9247,3512.1,3511.4,8.45715195]
[1754134058359,30.9247,3512.0,3511.4,8.45715195]
[1754134058515,30.0,3511.8,3511.6,0.856131]
[1754134058715,30.0,3511.6,3511.4,8.45715195]
[1754134058913,30.0,3511.6,3510.9,0.1424]
[1754134058914,35.3767,3511.5,3510.9,0.1424]
[1754134059215,30.0,3511.3,3511.1,0.856251]
[1754134059364,5.3767,3511.2,3510.9,0.1424]
[1754134059564,5.3767,3511.2,3510.4,8.45715195]
[1754134059565,4.452,3511.1,3510.4,8.45715195]
[1754134059765,5.3767,3511.1,3510.7,0.856371]
[1754134059966,30.0,3511.0,3510.7,0.856371]
[1754134060209,0.9247,3510.9,3510.4,8.45715195]
[1754134060498,4.457,3510.8,3510.5,3.0]
[1754134060699,0.9247,3510.7,3510.5,3.0]
[1754134061000,30.9247,3510.7,3510.6,0.856408]
[1754134061661,0.487,3511.2,3510.6,0.856408]
[1754134061864,34.456,3511.1,3511.0,8.45715195]
[1754134062065,4.457,3511.1,3511.0,8.45715195]
[1754134062598,0.487,3511.5,3511.0,9.31710715]
[1754134062895,4.458,3511.4,3511.0,9.31710715]
[1754134063095,0.4377,3511.7,3511.3,8.45715195]
[1754134063302,34.457,3511.6,3511.3,8.45715195]
[1754134063501,4.457,3511.6,3511.3,8.45715195]
[1754134063669,4.457,3511.6,3511.4,0.856111]
[1754134064100,0.4377,3511.7,3511.4,0.856111]
[1754134064294,30.0,3511.6,3511.4,0.856111]
[1754134065201,0.487,3511.5,3511.4,0.856111]
[1754134065404,0.4377,3511.6,3511.4,0.856111]
[1754134065696,30.9247,3511.5,3511.4,0.856111]
[1754134065905,0.9247,3511.5,3511.4,0.856111]
[1754134066625,0.9247,3512.0,3511.4,0.856111]
[1754134066799,30.0,3511.7,3511.5,8.45715195]
[1754134067103,34.942,3511.6,3511.5,8.45715195]
[1754134067603,35.3797,3511.6,3511.5,8.45715195]
[1754134068577,35.3797,3511.6,3511.4,0.856111]
[1754134068905,0.9247,3511.5,3511.4,0.856111]
[1754134069265,30.9247,3511.5,3511.4,0.856111]
[1754134069596,30.9247,3511.5,3511.2,1.656111]
[1754134069799,30.0,3511.5,3511.1,8.45715195]
[1754134070007,0.9247,3511.4,3511.2,0.856175]
[1754134070301,4.452,3511.3,3511.2,0.856175]
[1754134070518,4.452,3511.6,3511.2,1.02705529]
[1754134070720,4.452,3512.2,3511.3,5.03047948]
[1754134070899,30.0,3512.2,3511.8,8.45715195]
[1754134071634,30.0,3512.2,3511.9,0.1424]
[1754134071782,0.4899,3512.1,3511.8,8.45715195]
[1754134072490,30.0,3512.2,3511.8,8.45715195]
[1754134072892,0.4899,3512.2,3511.8,8.45715195]
[1754134073119,3.13867285,3513.5,3511.8,8.45715195]
[1754134073120,0.13867285,3513.5,3511.8,8.45715195]
[1754134073425,30.0,3513.0,3512.8,8.45715195]
[1754134073619,5.4091,3512.9,3512.8,8.45715195]
[1754134074015,0.4899,3513.3,3512.8,8.45715195]
[1754134074214,30.0,3513.7,3512.9,7.459]
[1754134074526,30.0,3513.7,3513.3,8.45715195]
[1754134074688,4.9499,3513.6,3513.3,8.45715195]
[1754134074883,0.4899,3513.5,3513.3,8.45715195]
[1754134075088,0.9531,3513.5,3513.3,8.45715195]
[1754134075321,4.46,3513.6,3513.3,8.45715195]
[1754134075526,0.60510941,3513.8,3513.3,8.45715195]
[1754134075832,4.459,3513.6,3513.3,8.45715195]
[1754134076005,0.9531,3513.5,3513.3,8.45715195]
[1754134076190,0.11520941,3513.8,3513.3,8.45715195]
[1754134076395,0.9531,3513.5,3513.3,8.45715195]
[1754134076825,0.4899,3513.5,3513.3,8.45715195]
[1754134077120,4.46,3513.6,3513.3,8.45715195]
[1754134077924,4.9499,3513.6,3513.3,8.45715195]
[1754134078527,0.11520941,3513.8,3513.3,8.45715195]
[1754134078763,4.459,3513.7,3513.4,0.1424]
[1754134078912,0.60510941,3513.8,3513.4,0.1424]
[1754134079118,4.9489,3513.7,3513.4,0.1424]
[1754134079416,4.459,3513.7,3513.5,1.405552]
[1754134079613,0.11520941,3513.8,3513.6,0.1424]
[1754134080150,0.11520941,3513.8,3513.7,0.55]
[1754134080456,0.4899,3514.4,3513.6,3.1424]
[1754134080626,4.9499,3514.4,3514.2,8.45715195]
[1754134081232,0.9531,3514.3,3514.2,0.855433]
[1754134081418,30.9531,3514.3,3512.4,0.02847056]
[1754134081618,4.46,3514.4,3513.2,8.45715195]
[1754134081619,30.0,3514.1,3513.2,8.45715195]
[1754134081818,5.4171,3514.0,3513.7,0.855433]
[1754134082025,0.9531,3513.9,3513.7,0.855433]
[1754134082236,0.9531,3513.8,3513.7,0.855433]
[1754134082572,30.9531,3513.8,3513.7,0.855433]
[1754134082866,30.0,3514.0,3513.7,9.31258495]
[1754134083453,4.463,3514.1,3513.7,9.31258495]
[1754134083656,4.463,3514.1,3513.8,3.0]
[1754134083958,4.463,3514.1,3513.7,10.54384345]
[1754134084175,4.463,3514.4,3513.7,13.77558495]
[1754134084366,4.463,3514.4,3514.2,8.45715195]
[1754134086237,4.9529,3514.4,3514.2,8.45715195]
[1754134086687,0.4899,3514.4,3514.2,8.45715195]
[1754134086984,5.58144385,3514.6,3514.2,8.45715195]
[1754134087359,0.9531,3514.5,3513.7,9.31258495]
[1754134087539,0.9531,3514.4,3513.7,13.76958495]
[1754134087895,5.4101,3514.3,3513.7,9.31258495]
[1754134088184,30.0,3514.1,3513.7,0.855433]
[1754134088349,30.0,3513.9,3513.7,0.855433]
[1754134088541,5.4111,3513.8,3513.7,0.855433]
[1754134088889,4.458,3513.8,3513.7,9.31258495]
[1754134089088,5.4111,3513.8,3513.5,8.45715195]
[1754134089304,0.4899,3513.7,3513.6,0.855653]
[1754134089669,0.9531,3513.7,3513.6,0.855653]
[1754134090863,0.9531,3513.7,3513.0,12.91515195]
[1754134090864,30.0,3513.6,3513.0,12.91515195]
[1754134091064,5.4101,3513.5,3513.0,8.45715195]
[1754134091320,5.4091,3513.4,3512.7,0.1424]
[1754134091611,30.0,3513.2,3512.2,0.1424]
[1754134091809,30.0,3513.0,3512.1,8.45715195]
[1754134091991,0.9531,3512.9,3512.6,0.855909]
[1754134092168,5.4111,3512.8,3512.6,0.855909]
[1754134092362,0.4632,3512.8,3512.6,9.31306095]
[1754134092613,4.458,3513.0,3512.7,0.1424]
[1754134092775,4.461,3513.2,3512.9,8.45715195]
[1754134093024,4.461,3513.4,3512.6,0.855909]
[1754134093176,0.4899,3513.1,3512.6,9.31306095]
[1754134093377,4.9292,3513.0,3512.6,9.31306095]
[1754134093632,4.9559,3513.0,3512.6,9.31306095]
[1754134093924,0.9531,3513.3,3512.6,9.31306095]
[1754134094075,4.467,3513.2,3513.1,8.45715195]
[1754134094279,4.9569,3513.2,3513.1,8.45715195]
[1754134094719,5.4201,3513.2,3513.1,8.45715195]
[1754134095030,5.4201,3513.2,3512.6,9.31306095]
[1754134095189,4.467,3513.2,3512.6,9.31306095]
[1754134095391,0.4899,3513.1,3512.6,9.31306095]
[1754134095643,0.4632,3513.0,3512.6,9.31306095]
[1754134095927,0.9531,3512.9,3512.6,9.31306095]
[1754134096108,0.4899,3513.1,3512.6,9.31306095]
[1754134096419,4.467,3513.2,3512.7,0.02846812]
[1754134096622,0.4899,3513.4,3513.1,8.45715195]
[1754134096846,4.464,3513.3,3513.1,8.45715195]
[1754134097184,0.9531,3513.2,3512.7,3.0]
[1754134097385,0.9531,3513.1,3512.7,3.0]
[1754134097629,0.9531,3513.0,3512.6,9.31306095]
[1754134097926,0.9531,3512.9,3512.6,9.31306095]
[1754134098096,0.4899,3512.9,3512.6,9.31306095]
[1754134098298,0.9531,3512.8,3512.6,9.31306095]
[1754134098535,0.9531,3512.7,3512.6,9.31306095]
[1754134100115,4.465,3512.9,3512.6,9.31306095]
[1754134100418,0.4899,3512.8,3512.6,9.31306095]
[1754134100629,5.4181,3512.9,3512.6,9.31306095]
[1754134100795,4.9549,3512.9,3512.6,9.31306095]
[1754134100991,0.4632,3513.2,3512.7,0.02846812]
[1754134101302,30.0,3513.0,3512.6,0.9313061]
[1754134101628,4.9519,3513.1,3512.4,4.462]
[1754134101629,4.463,3513.2,3512.7,0.855736]
[1754134101836,4.463,3513.2,3512.7,5.318736]
[1754134102148,6.844,3514.3,3512.7,5.318736]
[1754134102441,1.12144385,3514.6,3513.9,8.45715195]
[1754134102442,5.3823,3514.2,3513.9,8.45715195]
[1754134102733,5.3823,3514.1,3513.9,8.45715195]
[1754134102947,5.3823,3514.1,3513.5,12.92015195]
[1754134102948,0.9193,3514.0,3513.5,12.92015195]
[1754134103120,30.9193,3513.9,3513.5,8.45715195]
[1754134103293,0.9193,3513.8,3513.5,8.45715195]
[1754134103493,4.463,3514.1,3513.5,9.76360715]
[1754134103730,4.463,3514.1,3514.0,8.45715195]
[1754134104395,5.3823,3514.1,3513.6,4.6064]
[1754134104640,4.9181,3514.1,3513.6,13.06355195]
[1754134105342,0.9193,3514.0,3513.6,13.06355195]
[1754134105749,1.12144385,3514.6,3513.9,0.1424]
[1754134105750,1.57654385,3514.6,3513.9,0.1424]
[1754134106035,1.57654385,3514.6,3514.3,8.45715195]
[1754134106036,0.4551,3514.5,3514.3,8.45715195]
[1754134106191,1.12144385,3514.6,3514.3,8.45715195]
[1754134106396,0.9193,3514.4,3514.3,8.45715195]
[1754134107734,0.4551,3514.4,3514.3,8.45715195]
[1754134107938,1.12144385,3514.6,3514.3,8.45715195]
[1754134108136,1.12144385,3514.6,3514.4,0.02845435]
[1754134108336,1.12144385,3514.6,3514.5,0.1424]
[1754134108897,6.98913249,3516.6,3514.6,3.0]
[1754134109134,6.98913249,3516.6,3515.0,8.45715195]
[1754134109135,0.4642,3515.7,3515.0,8.45715195]
[1754134109297,0.4551,3515.6,3515.1,4.49444869]
[1754134109629,0.4551,3515.5,3515.1,4.466]
[1754134109931,4.466,3515.9,3515.1,4.466]
[1754134110248,4.9211,3515.9,3515.2,0.855189]
[1754134110452,0.9193,3515.8,3515.2,0.855189]
[1754134110803,0.9193,3515.8,3515.3,4.6084]
[1754134110999,0.9193,3515.7,3515.3,4.6084]
[1754134111320,0.4642,3516.1,3515.5,8.45715195]
[1754134111629,0.4642,3516.1,3515.6,0.1424]
[1754134111831,30.0,3517.5,3516.0,8.45715195]
[1754134112048,1.06093873,3518.8,3516.0,8.45715195]
[1754134112049,0.14075906,3518.6,3517.4,11.87298525]
[1754134112261,30.0,3519.5,3518.6,3.0]
[1754134112398,1.30317036,3521.0,3518.7,5.046]
[1754134112399,0.4551,3519.3,3518.7,5.046]
[1754134112602,0.4642,3519.2,3518.7,0.85413]
[1754134112853,30.0,3519.0,3518.9,0.1424]
[1754134113210,30.0,3518.9,3518.7,0.85413]
[1754134113449,0.9193,3518.9,3517.0,5.067]
[1754134113656,30.0,3518.7,3517.7,0.854486]
[1754134113797,30.0,3518.5,3517.7,0.854486]
[1754134113998,0.1424,3518.1,3517.9,8.45715195]
[1754134114240,0.4551,3518.4,3518.0,0.02842524]
[1754134114437,0.4642,3518.6,3518.1,0.02842443]
[1754134114636,0.4551,3518.9,3518.4,8.45715195]
[1754134114836,0.1424,3518.7,3518.4,8.45715195]
[1754134115038,8.45715195,3521.5,3518.5,0.0284212]
[1754134115239,0.1424,3519.2,3518.9,8.45715195]
[1754134115643,0.4642,3519.5,3518.1,5.092]
[1754134115644,30.9193,3519.1,3518.1,5.092]
[1754134115848,5.092,3519.5,3517.7,0.854486]
[1754134115849,30.0,3518.9,3517.7,0.854486]
[1754134116036,30.0,3518.7,3517.7,0.854486]
[1754134116355,30.0,3518.5,3517.7,0.854486]
[1754134116859,30.0,3518.3,3516.6,6.29912344]
[1754134117155,5.093,3518.7,3516.6,6.29912344]
[1754134117156,30.0,3518.1,3517.0,0.854736]
[1754134117329,30.0,3517.9,3517.1,0.02843251]
[1754134117534,30.0,3517.9,3517.0,0.854736]
[1754134117747,30.0,3517.7,3517.0,0.854736]
[1754134117956,0.9193,3517.6,3517.0,0.854736]
[1754134118124,30.9193,3517.5,3517.0,0.854736]
[1754134118316,30.0,3517.3,3515.8,5.08]
[1754134118531,30.0,3517.1,3515.8,5.08]
[1754134118733,0.9193,3517.0,3516.0,6.29912344]
[1754134119060,30.0,3516.8,3516.1,5.086]
[1754134119427,30.0,3516.8,3516.2,0.855014]
[1754134119624,0.9193,3516.7,3516.2,0.855014]
[1754134119933,0.9193,3516.6,3516.2,0.855014]
[1754134120120,0.4551,3516.5,3516.2,0.855014]
[1754134122369,0.4551,3518.0,3516.3,0.55]
[1754134122527,0.4551,3518.0,3517.3,6.29912344]
[1754134122729,0.4642,3518.2,3517.4,5.064]
[1754134122954,0.4551,3518.7,3517.8,6.29912344]
[1754134123154,0.4551,3518.7,3518.3,6.29912344]
[1754134123328,30.0,3518.8,3518.4,0.02842201]
[1754134123528,30.0,3519.2,3518.3,11.39012344]
[1754134123732,30.0,3519.0,3518.3,11.39012344]
[1754134124428,30.0,3519.0,3518.3,6.29912344]
[1754134124762,30.0,3518.8,3518.3,5.09]
[1754134125067,30.0,3518.6,3518.4,0.854468]
[1754134125224,30.0,3519.2,3518.0,5.087]
[1754134125568,0.9193,3518.5,3518.2,0.85452]
[1754134125769,1.0617,3518.5,3518.2,0.85452]
[1754134125931,0.4551,3518.4,3518.2,0.85452]
[1754134126555,0.1424,3518.5,3518.2,0.85452]
[1754134126782,0.4551,3518.5,3518.2,0.99692]
[1754134126964,0.1424,3518.7,3518.2,0.99692]
[1754134127164,5.078,3519.3,3518.2,0.99692]
[1754134127165,0.9193,3518.4,3518.2,0.85452]
[1754134127354,0.5975,3518.3,3518.2,0.85452]
[1754134127869,0.5975,3518.6,3518.2,0.85452]
[1754134128055,0.9193,3518.5,3518.2,0.85452]
[1754134128267,0.4551,3518.4,3518.2,5.93052]
[1754134128430,0.1424,3518.6,3518.3,6.29912344]
[1754134129072,0.4551,3519.0,3518.3,6.29912344]
[1754134129284,0.4551,3519.0,3518.3,6.44152344]
[1754134129482,0.1424,3518.9,3518.3,6.44152344]
[1754134131386,0.1424,3518.9,3518.4,0.02842201]
[1754134131586,0.1424,3518.9,3518.5,5.85617575]
[1754134131774,0.9193,3519.3,3518.5,5.99857575]
[1754134131775,0.1424,3519.0,3518.5,5.99857575]
[1754134132376,0.1424,3519.3,3518.8,6.29912344]
[1754134132549,0.1424,3519.3,3518.9,5.051]
[1754134132751,0.8937,3519.2,3518.9,5.05]
[1754134132971,0.1424,3519.3,3518.9,5.05]
[1754134132972,0.8937,3519.1,3518.9,5.05]
[1754134133454,0.4545,3519.0,3518.8,6.29912344]
[1754134133753,0.1424,3519.3,3519.0,0.854257]
[1754134133950,0.4545,3519.2,3519.0,0.854257]
[1754134134152,0.1424,3519.3,3519.0,0.854257]
[1754134135104,0.4545,3519.2,3519.0,0.854257]
[1754134135250,0.4545,3519.7,3519.0,0.854257]
[1754134135452,0.1424,3519.4,3519.1,5.042]
[1754134135686,0.1424,3519.4,3519.1,5.76938191]
[1754134135988,10.21470381,3524.8,3519.2,0.55]
[1754134136166,30.0,3520.5,3519.8,0.1424]
[1754134136348,30.0,3520.5,3520.2,0.1424]
[1754134136552,0.4545,3520.6,3520.2,0.1424]
[1754134137189,30.0,3520.9,3520.2,0.1424]
[1754134137385,0.4545,3521.1,3520.3,5.034]
[1754134137585,0.4545,3521.1,3520.6,6.29912344]
[1754134137790,0.56689942,3521.4,3520.6,11.33512344]
[1754134137991,0.8937,3520.9,3520.6,5.1794]
[1754134138164,0.4392,3520.9,3520.6,5.1794]
[1754134138368,0.4545,3520.8,3520.6,5.1794]
[1754134139488,0.4545,3520.7,3520.6,0.1424]
[1754134139788,0.4545,3520.9,3520.5,5.034]
[1754134140151,0.8937,3520.8,3520.5,5.034]
[1754134140384,0.8937,3520.7,3520.5,5.034]
[1754134140564,0.8937,3520.6,3520.5,5.029]
[1754134140988,0.8937,3520.6,3520.2,5.022]
[1754134141210,0.8937,3520.5,3520.2,5.022]
[1754134141516,1.30317036,3521.0,3518.9,0.1427]
[1754134141517,30.0,3520.3,3519.8,5.02]
[1754134141861,0.8937,3520.2,3519.7,5.017]
[1754134142056,0.8937,3520.1,3519.7,5.017]
[1754134142280,0.8937,3520.0,3519.6,5.015]
[1754134142500,0.4545,3519.9,3519.6,5.015]
[1754134142797,0.4545,3519.8,3519.6,5.015]
[1754134143184,0.4392,3520.4,3519.7,0.02841151]
[1754134143491,1.30317036,3521.0,3519.8,6.44182344]
[1754134143667,1.30317036,3521.0,3519.9,0.1424]
[1754134143668,30.0,3520.9,3519.9,0.1424]
[1754134143869,30.0,3520.9,3519.9,5.008]
[1754134144086,30.0,3520.7,3520.3,0.1424]
[1754134144458,0.4545,3520.6,3520.3,0.1424]
[1754134144894,0.8937,3520.5,3520.0,1.13071234]
[1754134145096,0.8937,3520.4,3519.8,11.30212344]
[1754134145258,1.30317036,3521.0,3519.8,12.44657578]
[1754134145459,1.30317036,3521.0,3520.9,6.29912344]
[1754134145664,1.30317036,3521.0,3520.9,6.44152344]
[1754134145906,0.11239942,3521.4,3521.0,0.55]
[1754134146067,0.11239942,3521.4,3521.3,0.6916]
[1754134146262,0.11239942,3521.4,3521.3,0.8343]
[1754134147605,0.11239942,3521.4,3521.3,0.6916]
[1754134148205,0.4545,3522.9,3521.4,0.55]
[1754134148501,3.554,3524.8,3521.1,6.29912344]
[1754134148502,30.0,3522.5,3521.1,6.29912344]
[1754134148673,0.8937,3522.4,3521.2,3.1416]
[1754134148874,5.058,3523.2,3521.2,3.1416]
[1754134148875,30.0,3522.2,3521.2,3.1416]
[1754134149185,30.0,3522.0,3521.2,0.1416]
[1754134149379,30.0,3521.8,3521.2,0.1416]
[1754134149581,0.8937,3521.7,3521.1,0.1424]
[1754134150095,0.81683457,3521.7,3521.1,0.1424]
[1754134150470,0.81683457,3521.7,3521.2,6.29912344]
[1754134150666,0.81683457,3521.7,3521.3,0.1416]
[1754134150878,30.0,3522.8,3521.3,0.1416]
[1754134151097,0.4392,3521.6,3521.3,0.1416]
[1754134151314,3.0,3522.9,3521.3,0.1416]
[1754134151484,30.0,3522.8,3521.3,0.1416]
[1754134151815,0.4392,3521.6,3521.3,0.1416]
[1754134152114,30.0,3522.6,3521.3,0.1416]
[1754134152271,5.048,3523.1,3521.3,0.1416]
[1754134152272,0.8937,3522.5,3521.3,0.1416]
[1754134152474,0.8937,3522.4,3521.7,6.29912344]
[1754134152667,0.8937,3522.4,3521.8,5.1806]
[1754134152882,0.4545,3522.3,3521.8,5.1806]
[1754134153352,0.4392,3522.2,3521.9,0.853532]
[1754134153507,0.8937,3522.1,3521.9,0.853532]
[1754134153702,0.8937,3522.0,3521.9,0.853532]
[1754134154515,30.8937,3522.0,3521.4,0.1416]
[1754134154805,30.0,3521.8,3521.7,0.853651]
[1754134155104,0.8937,3521.8,3521.7,0.853651]
[1754134155331,0.4545,3522.4,3521.7,12.17977444]
[1754134155645,0.8937,3522.3,3521.7,12.32137444]
[1754134156539,0.4545,3522.3,3521.7,13.59056528]
[1754134156744,0.4545,3522.5,3522.1,0.1416]
[1754134156930,30.0,3522.8,3521.7,12.17977444]
[1754134157128,0.4545,3522.4,3521.8,0.1416]
[1754134157337,30.4392,3522.3,3521.7,12.17977444]
[1754134157512,0.4545,3522.2,3521.7,12.17977444]
[1754134157713,0.8937,3522.1,3521.7,12.17977444]
[1754134157932,30.0,3522.8,3521.7,12.17977444]
[1754134158242,0.004,3522.9,3521.7,12.17977444]
[1754134158243,0.4545,3522.0,3521.7,12.17977444]
[1754134158445,0.004,3522.9,3521.7,12.17977444]
[1754134158632,30.0,3521.8,3521.7,0.853651]
[1754134158820,30.8937,3521.8,3521.2,5.022]
[1754134159024,0.8937,3521.7,3521.6,0.853683]
[1754134159223,30.8937,3521.7,3521.6,0.853683]
[1754134159452,30.0,3521.6,3520.9,11.31812344]
[1754134159612,30.4545,3521.6,3521.0,0.853765]
[1754134159808,0.4545,3521.5,3521.0,0.853765]
[1754134160063,0.4545,3521.4,3521.0,0.853765]
[1754134160230,0.8937,3521.4,3521.0,0.853765]
[1754134160425,0.4392,3521.3,3520.7,5.019]
[1754134160734,0.4392,3521.3,3520.7,5.869804]
[1754134160735,0.8937,3521.3,3520.7,5.869804]
[1754134161141,0.8937,3521.3,3520.7,0.853804]
[1754134161442,30.0,3521.1,3520.7,5.864804]
[1754134161775,0.8937,3521.2,3519.0,6.29912344]
[1754134161776,30.0,3520.9,3519.0,6.29912344]
[1754134161919,6.828,3521.2,3519.6,6.29912344]
[1754134161920,30.0,3520.7,3519.6,6.29912344]
[1754134162118,0.4475,3520.6,3519.6,6.29912344]
[1754134162465,0.4475,3520.6,3519.0,3.62991234]
[1754134162466,30.0,3520.5,3519.0,3.62991234]
[1754134162613,0.9234,3520.4,3518.8,7.15338044]
[1754134162813,30.0,3520.2,3518.8,7.15338044]
[1754134163014,0.9234,3520.1,3518.8,6.29912344]
[1754134163263,0.9234,3520.0,3518.8,6.29912344]
[1754134163414,30.0,3519.9,3518.8,6.29912344]
[1754134163614,0.9234,3519.8,3518.8,6.29912344]
[1754134163814,0.4475,3520.3,3519.3,6.29912344]
[1754134164062,30.0,3521.1,3519.0,3.0]
[1754134164395,30.0,3521.1,3518.8,7.01446708]
[1754134164396,30.0,3521.0,3520.2,6.29912344]
[1754134165426,30.0,3520.8,3520.2,6.29912344]
[1754134166355,5.043,3521.3,3520.2,6.29912344]
[1754134166356,35.4855,3521.3,3520.3,0.62991234]
[1754134166537,30.0,3521.1,3520.3,0.62991234]
[1754134167960,5.5079,3521.2,3520.2,6.29912344]
[1754134167961,30.0,3520.9,3520.2,6.29912344]
[1754134168331,30.0,3520.9,3519.8,5.045]
[1754134168332,0.4759,3520.8,3519.8,5.045]
[1754134168530,0.4475,3520.7,3519.8,5.045]